bitfinex/quotes_ETHUSD_20220202
["timestamp","ask_amount","ask_price","bid_price","bid_amount"]
[1643813815206,1.77934662,2690.1,2688.9,2.0]
[1643813815401,1.77934662,2690.1,2687.4,2.4396]
[1643813815402,0.01229977,2689.0,2687.4,2.4396]
[1643813815603,0.01229977,2689.0,2688.1,0.19011768]
[1643813815604,0.01266606,2688.8,2688.1,0.19011768]
[1643813816002,0.01266606,2688.8,2687.9,0.22611355]
[1643813816003,0.99999999,2688.7,2687.9,0.22611355]
[1643813816202,0.34604975,2689.1,2688.0,4.85]
[1643813816401,0.99999999,2688.9,2687.9,0.17611355]
[1643813816802,2.49021256,2688.8,2687.9,0.17611355]
[1643813817001,2.49021256,2688.8,2687.1,0.0163]
[1643813817202,0.99999999,2688.4,2687.2,0.01114893]
[1643813817403,0.78818008,2687.9,2687.1,0.0163]
[1643813817706,0.33942524,2687.8,2687.0,0.8863]
[1643813817902,0.33942524,2687.8,2687.3,0.21560695]
[1643813818356,0.33942524,2688.4,2687.3,0.21560695]
[1643813818555,2.15078732,2688.3,2687.3,0.21560695]
[1643813818956,0.01250145,2688.0,2687.4,0.1131944]
[1643813819158,0.33899163,2688.1,2687.3,0.0166297]
[1643813819358,0.99999999,2687.5,2687.3,0.0166297]
[1643813819556,2.49383056,2688.0,2687.3,0.0166297]
[1643813819757,0.398,2687.7,2687.3,0.0166297]
[1643813819958,0.34304324,2688.0,2687.3,0.0166297]
[1643813819959,0.33944324,2688.0,2687.3,0.0166297]
[1643813820164,1.8e-05,2688.0,2687.2,0.01290641]
[1643813820365,1.8e-05,2688.0,2687.0,0.8863]
[1643813820658,2.15078732,2688.3,2687.0,0.8863]
[1643813820860,2.15078732,2688.3,2687.0,0.9994944]
[1643813821257,0.18593083,2687.6,2687.0,0.8863]
[1643813821459,0.99999999,2687.8,2687.0,0.8863]
[1643813821658,2.29244841,2688.2,2687.0,0.8863]
[1643813821897,0.47762521,2688.4,2687.0,0.8863]
[1643813821898,2.67223767,2688.4,2687.0,0.8863]
[1643813822098,2.19461246,2688.2,2687.0,0.8863]
[1643813822298,0.186,2688.6,2687.0,1.81613]
[1643813822299,2.19461246,2688.6,2687.0,1.81613]
[1643813822499,2.37638669,2688.8,2687.0,1.81735612]
[1643813822805,0.434,2690.4,2687.4,0.01232393]
[1643813823008,0.99999999,2690.0,2687.5,0.6199]
[1643813823202,0.1859,2689.9,2687.5,0.76548649]
[1643813823399,1.18589999,2689.9,2687.5,0.9199]
[1643813823600,1.16574043,2689.9,2687.6,0.12351169]
[1643813823799,1.16574043,2689.9,2688.9,0.18603147]
[1643813824004,0.99999999,2689.0,2688.6,0.00414502]
[1643813824202,0.01204776,2689.7,2688.6,0.00414502]
[1643813824203,0.99999999,2689.4,2688.6,0.00414502]
[1643813824403,0.99999999,2689.0,2688.6,0.00414502]
[1643813824602,0.99999999,2689.0,2687.8,0.00967887]
[1643813824603,0.99999999,2689.0,2687.8,0.16630646]
[1643813824801,0.1859,2688.9,2687.5,0.1859]
[1643813825001,0.01222037,2689.1,2688.1,0.20643839]
[1643813825002,0.69153368,2689.1,2688.1,0.20643839]
[1643813825203,0.1859,2689.0,2687.5,0.1859]
[1643813825658,0.01277241,2688.3,2687.2,0.1859]
[1643813826050,0.99999999,2688.9,2687.2,0.1859]
[1643813826251,2.19461246,2688.8,2687.2,0.1859]
[1643813826652,0.01293185,2689.0,2687.2,0.1859]
[1643813826653,1.18599999,2688.9,2687.2,0.1859]
[1643813826860,0.99999999,2688.5,2687.8,0.18036519]
[1643813827051,2.06408077,2688.4,2687.8,0.18036519]
[1643813827252,3.47536436,2688.7,2687.8,0.18036519]
[1643813827451,0.99999999,2688.4,2687.8,0.18036519]
[1643813827652,0.1875243,2689.0,2687.8,0.18036519]
[1643813827653,3.49022018,2688.9,2687.8,0.18036519]
[1643813827852,4.06348761,2688.9,2687.8,0.18036519]
[1643813828053,0.99999999,2688.1,2687.2,1.2059]
[1643813828261,0.99999999,2688.1,2687.2,0.2059]
[1643813828262,0.99999999,2687.5,2687.2,0.2059]
[1643813828454,0.33942524,2687.4,2687.0,0.77433172]
[1643813828655,7.386e-05,2687.4,2687.0,0.77433172]
[1643813828853,4.2206193,2687.0,2686.2,1.1036263]
[1643813829152,4.2206193,2687.0,2686.5,0.18287896]
[1643813829400,4.2206193,2687.0,2686.2,1.1036263]
[1643813830403,0.186,2688.2,2687.0,5.97]
[1643813831003,0.186,2688.5,2687.3,0.94677592]
[1643813831204,0.91245242,2688.8,2687.6,0.08754757]
[1643813831205,0.186,2688.7,2687.6,0.08754757]
[1643813831411,0.1859,2689.2,2688.0,0.08754757]
[1643813831604,0.91245242,2689.2,2687.8,0.01277616]
[1643813831802,2.18552214,2689.1,2687.9,0.20347383]
[1643813832002,1.81206697,2689.8,2688.6,0.23793187]
[1643813832404,3.99758911,2689.8,2688.7,0.00096]
[1643813832603,2.89923669,2689.8,2688.7,0.00096]
[1643813832803,0.91245242,2689.7,2688.7,0.00096]
[1643813833051,2.37142214,2689.6,2688.2,0.00096]
[1643813833254,0.91245242,2688.6,2688.2,0.00096]
[1643813833454,0.91245242,2688.9,2688.2,0.00096]
[1643813833650,0.01294772,2689.2,2688.1,0.1859]
[1643813833651,0.91245242,2689.1,2688.1,0.1859]
[1643813833856,0.01294772,2689.2,2688.1,0.1859]
[1643813834051,0.1859,2689.5,2688.1,0.1859]
[1643813834351,2.37142214,2689.6,2688.1,0.18686]
[1643813834551,0.1859159,2689.0,2688.1,0.00096]
[1643813834752,0.91245242,2688.6,2688.2,0.00096]
[1643813834953,0.00423461,2688.9,2688.2,0.00096]
[1643813835158,0.00423461,2688.9,2687.5,0.00096]
[1643813835354,2.18975675,2688.9,2687.7,0.08754757]
[1643813835555,2.18975675,2688.9,2687.5,0.93062]
[1643813835556,1.95041453,2688.2,2687.6,0.1859]
[1643813835756,1.72470435,2688.2,2687.6,0.00096]
[1643813836156,0.81225193,2688.2,2687.3,0.00201536]
[1643813836354,0.91245242,2688.5,2687.3,0.00201536]
[1643813836555,0.91245242,2688.7,2687.3,0.00201536]
[1643813836829,0.91245242,2688.7,2687.2,0.22487743]
[1643813837022,0.1859,2688.8,2687.3,0.08754757]
[1643813837221,2.47015678,2688.9,2687.4,0.186]
[1643813837423,2.15385105,2688.9,2687.5,0.8757814]
[1643813837625,0.13819997,2689.4,2687.5,1.8054414]
[1643813837626,0.1859,2689.3,2687.5,1.8054414]
[1643813837825,0.13819997,2689.4,2687.7,0.08754757]
[1643813838124,0.13819997,2689.4,2687.6,0.44722144]
[1643813838125,0.91245242,2689.0,2687.8,0.434]
[1643813838322,0.91245242,2689.0,2687.8,0.734]
[1643813838527,0.75589735,2688.9,2688.2,0.18034234]
[1643813838723,0.13819997,2689.4,2687.9,0.00096]
[1643813838724,0.91245242,2688.4,2687.9,0.00096]
[1643813838926,0.13819997,2689.4,2687.9,0.00096]
[1643813838927,0.19812832,2689.2,2687.9,0.00096]
[1643813839123,0.19812832,2689.2,2687.4,0.18696]
[1643813839124,0.1859,2689.1,2687.4,0.18696]
[1643813839323,0.91245242,2688.0,2687.4,0.18696]
[1643813839523,0.91245242,2688.4,2687.4,0.18696]
[1643813839726,0.91245242,2688.4,2687.4,0.186]
[1643813839925,0.9132432,2688.9,2687.4,0.186]
[1643813839926,0.9132432,2688.9,2687.5,0.08754757]
[1643813840124,0.91245242,2689.0,2687.5,0.08850757]
[1643813840326,0.1859,2689.1,2687.5,0.43496]
[1643813840566,0.1859,2689.1,2687.7,0.01213418]
[1643813840758,0.1359,2689.3,2687.8,0.63203931]
[1643813840955,0.1359,2689.3,2687.8,0.6199]
[1643813841162,0.75680888,2689.1,2687.9,0.0056961]
[1643813841555,0.91245242,2688.4,2687.9,0.00096]
[1643813841757,0.1859,2689.0,2687.6,0.00096]
[1643813841955,0.91245242,2688.6,2687.6,0.00096]
[1643813842154,0.91245242,2688.6,2687.4,0.00096]
[1643813842355,0.92816907,2688.6,2687.4,0.00096]
[1643813842566,0.91245242,2687.6,2687.4,0.00096]
[1643813842766,0.19896059,2688.5,2687.3,0.00117413]
[1643813842767,0.91245242,2687.5,2687.3,0.00117413]
[1643813843157,0.186,2687.4,2687.0,0.186]
[1643813843359,0.186,2687.7,2687.0,0.186]
[1643813843558,0.91245242,2687.2,2687.0,0.186]
[1643813843761,0.91245242,2687.2,2686.9,0.02611915]
[1643813843959,0.91245242,2687.6,2686.9,0.02611915]
[1643813844311,0.91245242,2687.0,2686.9,0.02611915]
[1643813844500,0.186,2687.5,2686.9,0.02611915]
[1643813844501,0.88704592,2687.2,2686.9,0.02611915]
[1643813844702,0.186,2687.5,2686.9,0.02611915]
[1643813844703,0.186,2687.3,2686.9,0.02611915]
[1643813844901,0.186,2687.4,2686.9,0.02611915]
[1643813845102,0.186,2687.7,2686.9,0.02611915]
[1643813845302,0.91573087,2687.8,2686.4,0.21212965]
[1643813845303,0.55378289,2687.8,2686.5,4.15]
[1643813845501,0.55378289,2687.6,2686.5,4.17]
[1643813845703,1.02690067,2687.5,2686.5,0.02]
[1643813845903,0.55378289,2687.2,2686.5,0.02]
[1643813846102,0.84090067,2687.5,2686.3,0.6]
[1643813846604,0.55378289,2687.2,2686.3,0.6]
[1643813846805,0.186,2687.4,2686.8,0.00404654]
[1643813847004,0.55827463,2687.8,2686.8,0.00404654]
[1643813847202,0.00449174,2687.8,2686.8,0.00404654]
[1643813847804,0.55378289,2686.9,2686.5,1.14145432]
[1643813848056,0.33899163,2687.7,2686.8,0.01618617]
[1643813848250,0.91908923,2687.6,2686.8,0.01618617]
[1643813848450,0.73369923,2687.6,2686.8,0.01618617]
[1643813848650,0.12545863,2687.6,2686.8,0.01618617]
[1643813848854,0.12545863,2687.6,2686.8,0.23526829]
[1643813849050,0.54769923,2687.4,2686.5,2.306]
[1643813849248,0.54769923,2687.4,2686.5,2.12]
[1643813849852,0.54769923,2687.4,2686.5,2.83686379]
[1643813850050,0.54769923,2687.4,2686.4,1.0]
[1643813850051,0.18539,2687.5,2686.4,0.02]
[1643813850259,0.54769923,2686.5,2686.3,0.6]
[1643813850452,0.54769923,2686.8,2686.3,0.6]
[1643813850651,0.54769923,2686.4,2686.3,0.6]
[1643813851357,0.91047094,2686.7,2686.3,0.6]
[1643813851558,0.49366132,2686.4,2686.3,0.6]
[1643813851820,0.83265295,2686.4,2686.3,0.6]
[1643813852215,0.83265295,2686.4,2685.9,0.22677342]
[1643813852216,4.93243665,2686.2,2685.9,0.22677342]
[1643813852416,0.50662709,2686.0,2685.8,0.01615142]
[1643813852615,0.50662709,2686.0,2685.0,0.586]
[1643813852616,0.71631153,2685.9,2685.0,0.4]
[1643813852817,0.49366132,2685.5,2685.0,0.4]
[1643813853115,0.49366132,2685.5,2685.1,0.04433703]
[1643813853415,2.19669946,2686.0,2685.1,0.04433703]
[1643813853614,10.58758871,2686.7,2685.1,0.04433703]
[1643813853615,0.136,2686.3,2685.1,0.04433703]
[1643813853814,0.186,2686.6,2685.9,0.08842724]
[1643813854019,0.49366132,2686.0,2685.2,0.186]
[1643813854315,0.76865683,2686.2,2685.3,0.04320018]
[1643813854512,2.19669946,2686.1,2685.3,0.04320018]
[1643813854713,0.186,2686.5,2685.3,0.04320018]
[1643813854714,2.19669946,2686.5,2685.3,0.04320018]
[1643813854916,2.19669946,2686.5,2685.2,0.04376861]
[1643813855112,0.186,2686.7,2685.3,0.186]
[1643813855315,0.186,2686.7,2685.2,0.04376861]
[1643813855571,0.00330249,2687.0,2685.4,0.04263176]
[1643813855763,0.00330249,2687.0,2685.5,0.62]
[1643813855965,0.49696381,2687.0,2685.5,0.63221763]
[1643813856162,0.20405031,2687.2,2686.1,0.22519894]
[1643813856362,0.20405031,2687.2,2686.2,0.186]
[1643813856567,0.69771163,2687.2,2686.2,0.186]
[1643813856762,1.35848654,2686.8,2686.2,0.186]
[1643813856962,0.20405031,2687.2,2686.1,0.30115068]
[1643813857163,0.49366132,2686.2,2686.1,0.00115068]
[1643813857365,0.49366132,2686.2,2685.6,0.06149491]
[1643813857563,0.49366132,2686.2,2686.1,0.00115842]
[1643813858664,0.49366132,2686.7,2686.0,0.00115844]
[1643813859068,0.012312,2687.0,2686.0,0.00115844]
[1643813859300,0.49366132,2686.4,2685.5,0.17808493]
[1643813859703,0.49366132,2685.9,2685.5,0.17808493]
[1643813859902,0.49366132,2685.9,2685.1,0.186]
[1643813860107,0.03943033,2686.5,2685.1,0.186]
[1643813860306,0.49366132,2685.9,2685.1,0.186]
[1643813860809,0.434,2687.0,2685.3,5.9]
[1643813861006,1.86478754,2687.6,2685.8,0.01249827]
[1643813861207,1.86478754,2687.6,2685.9,0.63879236]
[1643813861208,0.1861,2687.5,2685.9,0.63879236]
[1643813861406,0.56690494,2687.6,2685.9,0.82479236]
[1643813861616,0.56690494,2687.6,2685.9,1.23798676]
[1643813861805,1.04377467,2687.0,2686.0,0.00096]
[1643813862006,0.99377467,2687.0,2686.1,0.80442]
[1643813862205,0.75561626,2687.0,2686.1,1.12442]
[1643813862405,0.75561626,2687.0,2686.2,0.01168264]
[1643813862607,0.75561626,2687.0,2686.3,0.186]
[1643813862806,0.75561626,2687.0,2686.3,0.37042]
[1643813863053,0.75561626,2687.0,2686.3,0.67042]
[1643813863453,0.00446715,2686.9,2686.4,0.00465742]
[1643813863652,0.00446715,2686.9,2686.5,0.18442]
[1643813864054,6.715e-05,2686.9,2686.5,0.18442]
[1643813864456,0.67966132,2688.1,2686.6,0.44623578]
[1643813864654,1.77601997,2687.9,2686.6,1.37618578]
[1643813864852,1.63782,2687.8,2686.7,0.01171401]
[1643813865052,1.63782,2687.8,2686.7,5.18496]
[1643813865053,1.0111,2686.8,2686.7,5.18496]
[1643813865253,1.0111,2686.8,2686.7,1.61928]
[1643813865453,1.0111,2686.8,2686.7,1.00096]
[1643813865653,2.2105,2686.8,2686.7,6.38432]
[1643813865853,2.2105,2686.8,2686.7,7.38432]
[1643813866054,2.18947739,2686.8,2686.7,1.48432]
[1643813866254,2.18947739,2686.8,2686.7,0.48432]
[1643813866454,2.98857739,2686.8,2686.7,0.48432]
[1643813867203,4.1842481,2686.8,2686.7,5.28432]
[1643813867402,4.1842481,2686.8,2686.7,6.28432]
[1643813867607,5.3807481,2686.8,2686.7,1.48432]
[1643813867804,5.3807481,2686.8,2686.7,0.48432]
[1643813868106,5.3807481,2686.8,2686.7,4.28432]
[1643813868305,5.9,2686.6,2685.5,3.84628541]
[1643813868509,7.07400942,2686.8,2685.0,0.45767916]
[1643813868510,0.01278004,2685.6,2685.0,0.45767916]
[1643813868708,0.50644136,2685.6,2685.0,0.45767916]
[1643813868907,0.49366132,2686.1,2685.0,0.45767916]
[1643813869107,0.186,2686.0,2685.0,0.45767916]
[1643813869307,0.80599249,2685.9,2685.0,0.4]
[1643813869509,2.16100898,2685.8,2685.0,0.4]
[1643813869710,0.0120295,2686.2,2685.0,0.4]
[1643813869711,0.186,2686.1,2685.0,0.4]
[1643813869907,0.49366132,2685.8,2685.0,0.4]
[1643813870572,0.186,2686.1,2685.0,0.4]
[1643813870573,0.67966132,2686.1,2685.0,0.4]
[1643813870770,0.67966132,2686.1,2685.3,0.00103431]
[1643813870771,0.69767202,2685.7,2685.3,0.00103431]
[1643813870972,0.67966132,2686.1,2685.3,0.00103431]
[1643813871168,0.434,2686.3,2685.4,5.9]
[1643813871372,0.1861,2686.2,2685.6,0.01231698]
[1643813871573,7.3975481,2686.8,2685.6,0.02553975]
[1643813871574,2.34878094,2686.7,2685.6,0.02553975]
[1643813871769,2.16278094,2686.7,2685.8,0.2050902]
[1643813871969,2.16278094,2686.7,2685.8,0.20612432]
[1643813872368,0.49366132,2686.4,2685.8,0.16195333]
[1643813872571,2.65644226,2686.3,2685.8,0.00103412]
[1643813872769,2.34878094,2686.5,2685.8,0.00103412]
[1643813872971,0.49366132,2686.3,2685.0,0.586]
[1643813873171,0.49366132,2686.3,2685.9,0.00341148]
[1643813873172,0.19035994,2686.2,2685.9,0.00341148]
[1643813873670,0.00435994,2686.2,2685.9,0.00341148]
[1643813873872,1.63782,2686.1,2685.9,0.00341148]
[1643813874072,1.63782,2686.1,2685.0,2.46685]
[1643813874303,1.63782,2686.1,2685.2,0.02]
[1643813874504,0.85391,2686.0,2685.9,0.0035644]
[1643813874710,2.49173,2686.0,2685.9,0.0035644]
[1643813875006,2.49173,2686.0,2685.9,3.7035644]
[1643813875504,1.63782,2686.0,2685.9,5.0]
[1643813875732,0.00440568,2686.2,2685.9,5.0]
[1643813875733,0.00440568,2686.2,2686.0,0.68778]
[1643813875906,0.00440568,2686.2,2686.1,0.24484767]
[1643813876104,5.68e-06,2686.2,2686.1,0.24484767]
[1643813876305,5.68e-06,2686.2,2686.0,1.68778]
[1643813876506,2.30543864,2687.2,2686.0,1.63778]
[1643813876706,2.30543864,2687.6,2686.1,0.02769211]
[1643813876906,0.186,2687.6,2686.1,0.21369211]
[1643813877108,2.30543864,2687.6,2686.1,1.15403078]
[1643813877314,0.186,2687.8,2686.8,3.95]
[1643813877511,0.186,2687.8,2686.8,4.28747783]
[1643813877709,2.61309996,2688.5,2686.8,4.28747783]
[1643813877710,0.186,2688.4,2687.3,0.50633867]
[1643813877909,0.75391,2688.3,2687.3,0.96424994]
[1643813878165,0.75391,2688.3,2687.4,0.90481229]
[1643813878363,0.89139917,2689.2,2688.0,0.88044932]
[1643813878564,2.11943864,2689.1,2688.0,0.88044932]
[1643813878768,0.186,2689.3,2688.8,0.21969375]
[1643813878966,0.1859,2689.6,2688.8,0.21969375]
[1643813879164,0.1859,2689.6,2688.8,0.16664503]
[1643813879165,0.85391,2689.6,2688.8,0.16664503]
[1643813879564,0.1859,2689.8,2688.8,0.87548621]
[1643813879768,0.1859,2689.8,2689.0,1.85846]
[1643813879969,9.34532927,2691.2,2689.0,1.85846]
[1643813879970,0.1859,2690.2,2689.2,0.92905]
[1643813880166,0.1857,2690.5,2689.6,0.22581688]
[1643813880364,0.1857,2690.8,2689.6,0.24001011]
[1643813880566,0.1857,2690.8,2690.0,0.71679051]
[1643813880567,0.12046187,2690.8,2690.0,0.71679051]
[1643813880766,0.87416634,2691.3,2690.0,0.71679051]
[1643813880767,0.10306632,2690.7,2690.0,0.02210724]
[1643813880966,0.10306632,2690.7,2689.9,0.88478552]
[1643813881266,0.1857,2691.2,2689.9,0.88478552]
[1643813881267,1.94035882,2690.9,2689.9,0.88478552]
[1643813881571,0.10306632,2690.1,2689.8,2.78922253]
[1643813881825,0.10306632,2689.9,2688.9,1.82068756]
[1643813882018,0.10306632,2690.0,2688.9,1.82068756]
[1643813882216,0.1859,2690.2,2688.9,1.82068756]
[1643813882217,1.0,2689.7,2688.9,0.92933]
[1643813882417,1.0,2689.7,2688.2,0.1859]
[1643813882418,0.15172196,2689.6,2688.2,0.1859]
[1643813882621,0.15172196,2689.6,2687.7,0.1859]
[1643813882622,0.17967376,2689.6,2687.7,0.1859]
[1643813882817,0.1859,2690.1,2688.5,0.92948]
[1643813883017,0.1859,2690.1,2688.4,2.06469]
[1643813883217,0.1859,2690.1,2689.4,0.88383015]
[1643813883418,1.07427,2690.3,2689.5,0.23564835]
[1643813883819,0.97427,2690.3,2689.5,0.23564835]
[1643813884016,0.97427,2690.3,2689.8,0.00115231]
[1643813884218,0.19844315,2691.1,2689.8,0.00115231]
[1643813884416,0.01274315,2691.1,2689.8,0.00115231]
[1643813884616,0.1857,2691.0,2689.8,0.00115231]
[1643813884818,2.06388,2691.0,2689.8,0.00115231]
[1643813885017,2.83766877,2690.9,2689.7,0.82440922]
[1643813885221,0.0044654,2690.5,2689.8,0.00384103]
[1643813885418,1.75255618,2690.8,2690.1,0.92891]
[1643813885668,0.1857,2691.2,2690.5,0.92867]
[1643813885863,0.1857,2691.6,2691.0,0.01237099]
[1643813886060,6.0250263,2692.6,2691.0,0.01237099]
[1643813886061,0.1857,2691.8,2691.0,0.01237099]
[1643813886263,0.1857,2692.4,2691.0,0.01237099]
[1643813886565,0.1857,2692.4,2691.2,0.70855517]
[1643813886763,0.1857,2692.5,2691.2,1.03958958]
[1643813887063,0.1857,2692.5,2691.3,0.03575286]
[1643813887263,1.0836263,2692.6,2691.4,0.1857]
[1643813887465,1.0836263,2692.6,2691.5,1.43399999]
[1643813887664,0.1857,2693.3,2692.1,0.9280654]
[1643813887867,0.1857,2693.7,2692.3,0.92801]
[1643813888062,0.1857,2693.7,2692.2,1.54742]
[1643813888063,0.04149491,2693.0,2692.2,0.3]
[1643813888263,0.04149491,2693.0,2692.2,1.3]
[1643813888462,0.04092649,2692.9,2691.9,0.6195]
[1643813888764,1.1855,2693.9,2691.9,0.6195]
[1643813888765,0.01285259,2692.4,2691.9,0.1855]
[1643813888962,0.04035807,2692.8,2691.9,0.1855]
[1643813889164,2.11239078,2693.2,2691.9,0.1855]
[1643813889165,0.01262755,2692.5,2691.9,0.1855]
[1643813889629,0.1857,2692.4,2691.9,0.1855]
[1643813889829,0.89271245,2692.3,2691.9,0.1855]
[1643813890029,0.1857,2692.2,2691.9,0.1855]
[1643813890233,0.00448845,2692.3,2691.1,0.1857]
[1643813890436,1.00448845,2692.3,2691.1,0.1857]
[1643813890634,2.29809078,2692.2,2691.1,0.87831]
[1643813890829,0.1857,2692.2,2691.1,0.87831]
[1643813891031,1.0,2691.7,2690.1,0.1857]
[1643813891234,0.23749093,2689.9,2689.7,0.1857]
[1643813891434,0.23749093,2689.9,2688.9,1.06446]
[1643813891633,0.25655197,2689.9,2689.1,1.75768]
[1643813891832,0.1859,2689.8,2689.2,1.68543]
[1643813892029,0.45306104,2689.9,2689.3,0.87864]
[1643813892232,0.45306104,2689.9,2689.4,1.6853]
[1643813892233,0.1859,2689.8,2689.4,1.6853]
[1643813892631,2.11239078,2690.2,2689.4,1.6853]
[1643813892832,0.1857,2690.2,2689.4,1.6853]
[1643813893259,0.17859607,2690.2,2689.4,1.6853]
[1643813893854,0.18601,2690.1,2689.7,0.00396657]
[1643813894059,0.22366035,2689.8,2689.7,0.00396657]
[1643813894255,0.6197,2690.0,2689.7,0.00396657]
[1643813894656,0.434,2690.0,2689.7,0.00396657]
[1643813894860,0.434,2690.0,2689.7,0.00395658]
[1643813895159,0.1857,2690.5,2689.7,0.00395658]
[1643813895357,3.7822,2691.5,2689.8,0.23251696]
[1643813895358,0.1857,2690.8,2689.8,0.23251696]
[1643813895562,0.00399159,2691.0,2689.8,0.23251696]
[1643813895563,0.00399159,2691.0,2690.4,0.01295275]
[1643813895757,0.00399159,2691.0,2689.8,0.33345455]
[1643813895758,0.89550677,2690.7,2689.8,0.33345455]
[1643813895956,0.89550677,2690.7,2689.8,0.22026015]
[1643813896163,0.00399206,2691.0,2690.2,0.00395592]
[1643813896456,0.22126887,2691.0,2690.2,0.00395592]
[1643813896656,0.00399206,2691.0,2690.2,0.00395592]
[1643813897123,4.9255,2691.9,2690.3,1.082]
[1643813897124,0.89656591,2691.3,2690.3,1.082]
[1643813897321,0.00283047,2691.0,2690.4,1.082]
[1643813897721,0.00283047,2691.0,2690.6,0.21728041]
[1643813898126,0.00283047,2691.0,2690.7,0.1857]
[1643813898326,2.07282272,2692.1,2690.7,1.2677]
[1643813898327,0.79288745,2691.2,2690.7,1.2677]
[1643813898527,0.00402371,2691.0,2690.7,1.27172427]
[1643813899525,0.80755756,2691.2,2690.7,1.082]
[1643813899726,0.80755756,2691.2,2690.7,1.08322498]
[1643813900026,0.32389997,2691.8,2690.7,1.08322498]
[1643813900225,0.13819997,2691.8,2690.7,1.08322498]
[1643813900660,0.08819997,2691.8,2690.7,1.082]
[1643813900854,0.17834748,2691.6,2690.7,1.082]
[1643813901055,0.08819997,2691.8,2690.8,0.00122496]
[1643813901656,0.1857,2692.2,2690.8,0.00122496]
[1643813901857,0.14822834,2692.5,2691.0,1.082]
[1643813902057,1.10414858,2692.3,2691.2,1.082]
[1643813902257,3.35,2692.2,2691.0,0.3]
[1643813902457,0.1857,2692.7,2691.0,0.3]
[1643813902660,0.1857,2692.7,2690.9,0.92854]
[1643813902863,0.05320005,2692.8,2691.1,1.11319439]
[1643813903058,4.0862,2693.4,2691.4,0.01227025]
[1643813903261,4.0862,2693.4,2691.5,0.6197]
[1643813903262,0.00444116,2691.9,2691.5,0.6197]
[1643813903459,6.198e-05,2692.3,2691.9,5.9]
[1643813903660,0.01233487,2693.9,2692.2,0.99999999]
[1643813903661,0.19783487,2693.9,2692.2,0.99999999]
[1643813903859,0.129646,2694.4,2692.0,8.1899]
[1643813903860,3.16588695,2694.3,2692.4,0.99999999]
[1643813904159,3.16588695,2694.3,2692.5,0.46581755]
[1643813904160,3.16586541,2694.3,2692.5,0.46581755]
[1643813904414,0.01291293,2693.9,2692.5,0.434]
[1643813904612,0.01291293,2693.9,2692.8,0.19462038]
[1643813904812,0.1855,2694.4,2692.8,0.19462038]
[1643813905111,1.0,2694.2,2692.8,0.24462037]
[1643813905311,0.274717,2694.5,2692.8,0.24462037]
[1643813905312,0.1855,2694.1,2692.8,0.24462037]
[1643813905522,0.1855,2694.4,2692.8,0.24462037]
[1643813905714,0.23893383,2694.5,2693.9,0.22430005]
[1643813905920,24.18241583,2695.5,2693.6,0.72264454]
[1643813905921,0.1855,2695.2,2693.6,0.72264454]
[1643813906111,0.01207334,2695.0,2693.6,1.02264454]
[1643813906311,0.1355,2694.9,2693.6,1.02264454]
[1643813906511,0.1355,2694.9,2693.7,0.434]
[1643813906917,1.0,2694.5,2693.3,1.0]
[1643813907111,0.04680724,2695.0,2693.2,0.87736]
[1643813907112,0.21821506,2694.3,2693.2,0.87736]
[1643813907312,2.55972359,2694.2,2693.2,1.17736]
[1643813907512,0.1855,2694.1,2693.2,2.28154]
[1643813907711,0.1855,2694.1,2693.2,3.10958681]
[1643813907912,0.1855,2694.1,2693.2,4.10958681]
[1643813908178,0.00452877,2693.8,2693.2,4.29508681]
[1643813908376,0.00452877,2693.8,2693.2,1.98154]
[1643813908583,0.00452877,2693.8,2693.1,0.34065959]
[1643813908584,0.17826526,2693.7,2693.1,0.34065959]
[1643813908780,0.17826526,2693.7,2692.2,0.00414056]
[1643813908781,0.01274776,2693.2,2692.2,0.00414056]
[1643813908978,0.33899163,2693.4,2693.2,0.76852159]
[1643813909179,0.33899163,2693.4,2691.0,0.99999999]
[1643813909180,8.74626909,2693.3,2691.0,0.99999999]
[1643813909379,0.76405269,2691.9,2690.8,0.01224003]
[1643813909582,0.33899163,2692.6,2691.0,0.20629771]
[1643813909777,0.1857,2692.5,2692.0,0.99999999]
[1643813909981,0.1857,2692.7,2691.5,0.01267583]
[1643813910181,0.1857,2692.7,2690.6,0.1855]
[1643813910182,5.9,2692.5,2690.6,0.1855]
[1643813910382,5.57563938,2692.4,2690.1,0.1855]
[1643813910578,5.57563938,2692.4,2689.3,0.0607]
[1643813910579,0.1872,2691.0,2689.3,0.0607]
[1643813910776,0.01251025,2691.2,2689.2,0.17319999]
[1643813910777,0.6128916,2690.9,2689.2,0.17319999]
[1643813910977,0.92490855,2689.9,2689.3,3.60401999]
[1643813911183,0.19264566,2690.2,2689.5,0.87884]
[1643813911384,0.37984566,2690.2,2689.6,0.80294]
[1643813911579,0.1872,2689.9,2688.5,0.06085]
[1643813911807,0.1859,2689.8,2688.5,1.77805]
[1643813912010,2.29295035,2689.8,2688.7,0.21614473]
[1643813912308,0.1859,2690.0,2689.5,0.81279999]
[1643813912507,2.25897746,2690.7,2689.2,0.67041641]
[1643813912805,0.1857,2690.8,2689.8,0.81279999]
[1643813913007,0.1857,2690.8,2689.2,3.02170364]
[1643813913008,0.20076328,2690.7,2689.6,0.19912925]
[1643813913206,0.86987695,2690.6,2689.6,0.19912925]
[1643813913408,0.86987695,2690.6,2689.4,0.81279999]
[1643813913912,0.86987695,2690.6,2689.3,0.87864]
[1643813914108,0.86987695,2690.6,2689.3,1.75753]
[1643813914409,1.30387695,2690.6,2689.4,1.6853]
[1643813914807,0.6197,2690.6,2689.7,0.8785]
[1643813915008,0.6197,2690.6,2690.1,1.69117999]
[1643813915009,0.1857,2690.6,2690.1,1.69117999]
[1643813915210,2.23832668,2691.3,2690.4,0.01225288]
[1643813915409,0.19532933,2691.0,2690.5,2.56285]
[1643813915660,0.72152096,2691.0,2690.5,0.87824]
[1643813915856,0.81006987,2690.8,2690.5,0.87824]
[1643813916056,2.26963779,2690.9,2690.7,0.87845]
[1643813916258,2.26963779,2690.9,2690.8,1.68442]
[1643813916259,0.1857,2690.9,2690.8,1.68442]
[1643813916460,2.05262668,2691.2,2690.8,1.68442]
[1643813916461,0.52469163,2691.1,2690.8,1.68442]
[1643813916658,5.9,2690.8,2689.4,0.1857]
[1643813916857,0.01233037,2690.2,2688.9,0.1857]
[1643813917057,0.01233037,2690.2,2689.4,0.18989223]
[1643813917256,4.9,2690.1,2688.4,0.03813162]
[1643813917460,0.93804618,2689.7,2688.5,0.1859]